lending/lending_fUSD_20241005
["ID","MTS","AMOUNT","RATE_DAILY","PERIOD"]
[339932619,1728161439659,-150.0,0.00041643,120]
[339932621,1728161439669,-972.91,0.00041643,120]
[339932623,1728161439678,-803.68,0.00041643,120]
[339932625,1728161439688,-719.15,0.00041643,120]
[339932627,1728161439697,-500.0,0.00041643,120]
[339932629,1728161439706,-801.5,0.00041643,120]
[339932631,1728161439717,-500.0,0.00041643,120]
[339932633,1728161439726,-500.0,0.00041643,120]
[339932635,1728161439735,-500.0,0.00041643,120]
[339932637,1728161439745,-500.0,0.00041643,120]
[339932639,1728161439757,-500.0,0.00041643,120]
[339932641,1728161439767,-500.0,0.00041643,30]
[339932643,1728161439776,-500.0,0.00041643,120]
[339932645,1728161439785,-500.0,0.00041643,120]
[339932646,1728161439795,-500.0,0.00041643,120]
[339932648,1728161439804,-500.0,0.00041643,120]
[339932650,1728161439814,-500.0,0.00041643,120]
[339932652,1728161439824,-958.96,0.00041643,120]
[339932654,1728161439833,-500.0,0.00041643,120]
[339932656,1728161439842,-575.89,0.00041643,60]
[339932658,1728161439851,-500.0,0.00041643,120]
[339932659,1728161439861,-500.0,0.00041643,120]
[339932661,1728161439870,-500.0,0.00041643,120]
[339932663,1728161439879,-500.0,0.00041643,120]
[339932666,1728161439888,-841.88,0.00041643,120]
[339932668,1728161439898,-500.0,0.00041643,120]
[339932670,1728161439907,-500.0,0.00041643,120]
[339932671,1728161439916,-500.0,0.00041643,120]
[339932673,1728161439925,-500.0,0.00041643,120]
[339932675,1728161439934,-500.0,0.00041643,120]
[339932677,1728161439943,-500.0,0.00041643,120]
[339932679,1728161439955,-500.0,0.00041643,120]
[339932681,1728161439965,-500.0,0.00041643,120]
[339932683,1728161439974,-500.0,0.00041643,120]
[339932685,1728161439983,-500.0,0.00041643,120]
[339932687,1728161439992,-500.0,0.00041643,120]
[339932689,1728161440001,-500.0,0.00041643,120]
[339932691,1728161440010,-500.0,0.00041643,120]
[339932693,1728161440019,-500.0,0.00041643,120]
[339932695,1728161440028,-973.04,0.00041643,120]
[339932697,1728161440037,-500.0,0.00041643,120]
[339932699,1728161440047,-173.100606,0.00041698,120]
[339932701,1728161440056,-1000.0,0.00041712,60]
[339932703,1728161440065,-700.0,0.00041712,60]
[339932705,1728161440074,-500.0,0.00041712,60]
[339932707,1728161440083,-500.0,0.00041712,60]
[339932709,1728161440092,-5442.88448953,0.00041784,15]
[339932711,1728161440101,-243856.0,0.00041917,10]
[339932713,1728161440110,-450.0,0.00042,30]
[339932715,1728161440120,-150.22245653,0.00042054,120]
[339932717,1728161440129,-500.0,0.00042054,120]
[339932719,1728161440138,-500.0,0.00042054,120]
[339932721,1728161440147,-562.31,0.00042054,120]
[339932723,1728161440156,-500.0,0.00042054,120]
[339932725,1728161440165,-500.0,0.00042054,120]
[339932727,1728161440174,-500.0,0.00042054,120]
[339932729,1728161440184,-748.95,0.00042054,120]
[339932731,1728161440193,-536.38,0.00042054,120]
[339932732,1728161440202,-967.22,0.00042054,120]
[339932734,1728161440211,-150.0,0.00042054,120]
[339932736,1728161440220,-972.91,0.00042054,120]
[339932738,1728161440230,-803.68,0.00042054,120]
[339932740,1728161440239,-719.15,0.00042054,120]
[339932742,1728161440248,-500.0,0.00042054,120]
[339932744,1728161440257,-801.5,0.00042054,120]
[339932746,1728161440266,-500.0,0.00042054,120]
[339932748,1728161440276,-500.0,0.00042054,120]
[339932750,1728161440285,-500.0,0.00042054,120]
[339932751,1728161440294,-500.0,0.00042054,120]
[339932752,1728161440303,-500.0,0.00042054,120]
[339932753,1728161440313,-500.0,0.00042054,120]
[339932754,1728161440322,-500.0,0.00042054,120]
[339932755,1728161440331,-500.0,0.00042054,120]
[339932756,1728161440340,-500.0,0.00042054,120]
[339932757,1728161440349,-500.0,0.00042054,120]
[339932758,1728161440359,-500.0,0.00042054,120]
[339932759,1728161440368,-500.0,0.00042054,120]
[339932760,1728161440377,-500.0,0.00042054,120]
[339932761,1728161440386,-500.0,0.00042054,120]
[339932762,1728161440396,-500.0,0.00042054,120]
[339932763,1728161440410,-500.0,0.00042054,120]
[339932764,1728161440419,-500.0,0.00042054,120]
[339932765,1728161440428,-500.0,0.00042054,120]
[339932766,1728161440437,-500.0,0.00042054,120]
[339932767,1728161440447,-500.0,0.00042054,120]
[339932768,1728161440455,-500.0,0.00042054,120]
[339932769,1728161440465,-500.0,0.00042054,120]
[339932770,1728161440473,-500.0,0.00042054,120]
[339932771,1728161440482,-500.0,0.00042054,120]
[339932772,1728161440491,-500.0,0.00042054,30]
[339932773,1728161440501,-500.0,0.00042054,120]
[339932774,1728161440510,-500.0,0.00042054,120]
[339932775,1728161440519,-500.0,0.00042054,120]
[339932777,1728161440528,-500.0,0.00042054,120]
[339932779,1728161440538,-481.04253975,0.00042054,120]
[339932781,1728161440548,-958.96,0.00042054,120]
[339932783,1728161440557,-500.0,0.00042054,120]
[339932785,1728161440567,-575.89,0.00042054,60]
[339932787,1728161440576,-500.0,0.00042054,120]
[339932789,1728161440585,-444.28473126,0.00042054,120]
[339932791,1728161440595,-500.0,0.00042054,120]
[339932793,1728161440605,-500.0,0.00042054,120]
[339932795,1728161440615,-841.88,0.00042054,120]
[339932797,1728161440624,-495.51214022,0.00042054,120]
[339932799,1728161440634,-500.0,0.00042054,120]
[339932801,1728161440643,-500.0,0.00042054,120]
[339932803,1728161440655,-500.0,0.00042054,120]
[339932805,1728161440664,-500.0,0.00042054,120]
[339932807,1728161440673,-500.0,0.00042054,120]
[339932809,1728161440682,-500.0,0.00042054,120]
[339932811,1728161440691,-500.0,0.00042054,120]
[339932813,1728161440700,-500.0,0.00042054,120]
[339932815,1728161440710,-500.0,0.00042054,120]
[339932817,1728161440719,-500.0,0.00042054,120]
[339932819,1728161440729,-500.0,0.00042054,120]
[339932821,1728161440738,-328.9,0.00042054,120]
[339932823,1728161440748,-500.0,0.00042054,120]
[339932825,1728161440760,-973.04,0.00042054,120]
[339932827,1728161440769,-500.0,0.00042054,120]
[339932829,1728161440778,-851.405413,0.00042085,30]
[339932831,1728161440788,-151.100606,0.00042198,120]
[339932833,1728161440798,-1000.0,0.0004226,60]
[339932835,1728161440809,-700.0,0.0004226,60]
[339932837,1728161440820,-151.100606,0.00042298,120]
[339932839,1728161440831,-151.100606,0.00042398,120]
[339932842,1728161440843,-500.0,0.00042465,120]
[339932844,1728161440853,-507.3743776,0.00042465,120]
[339932846,1728161440864,-562.31,0.00042465,120]
[339932848,1728161440875,-500.0,0.00042465,120]
[339932850,1728161440884,-620.74,0.00042465,120]
[339932852,1728161440894,-500.0,0.00042465,120]
[339932853,1728161440904,-748.95,0.00042465,120]
[339932855,1728161440915,-536.38,0.00042465,120]
[339932858,1728161440926,-967.22,0.00042465,120]
[339932860,1728161440936,-167.19543633,0.00042465,120]
[339932862,1728161440946,-972.91,0.00042465,120]
[339932863,1728161440956,-803.68,0.00042465,120]
[339932865,1728161440966,-719.15,0.00042465,120]
[339932867,1728161440976,-510.3105681,0.00042465,120]
[339932869,1728161440987,-801.5,0.00042465,120]
[339932871,1728161440997,-500.0,0.00042465,120]
[339932874,1728161441008,-500.0,0.00042465,120]
[339932876,1728161441018,-500.0,0.00042465,120]
[339932878,1728161441028,-500.0,0.00042465,120]
[339932880,1728161441038,-500.0,0.00042465,120]
[339932882,1728161441049,-500.0,0.00042465,30]
[339932884,1728161441059,-500.0,0.00042465,120]
[339932886,1728161441070,-500.0,0.00042465,120]
[339932888,1728161441080,-500.0,0.00042465,120]
[339932890,1728161441091,-500.0,0.00042465,120]
[339932892,1728161441101,-958.96,0.00042465,120]
[339932894,1728161441111,-500.0,0.00042465,120]
[339932896,1728161441121,-575.89,0.00042465,60]
[339932898,1728161441132,-500.0,0.00042465,120]
[339932900,1728161441142,-500.0,0.00042465,120]
[339932902,1728161441153,-500.0,0.00042465,120]
[339932904,1728161441164,-841.88,0.00042465,120]
[339932906,1728161441174,-500.0,0.00042465,120]
[339932908,1728161441184,-500.0,0.00042465,120]
[339932910,1728161441195,-500.0,0.00042465,120]
[339932912,1728161441206,-500.0,0.00042465,120]
[339932914,1728161441216,-500.0,0.00042465,120]
[339932916,1728161441227,-500.0,0.00042465,120]
[339932918,1728161441238,-500.0,0.00042465,120]
[339932920,1728161441248,-500.0,0.00042465,120]
[339932922,1728161441258,-500.0,0.00042465,120]
[339932924,1728161441268,-500.0,0.00042465,120]
[339932926,1728161441279,-500.0,0.00042465,120]
[339932928,1728161441289,-500.0,0.00042465,120]
[339932930,1728161441298,-973.04,0.00042465,120]
[339932932,1728161441307,-500.0,0.00042465,120]
[339932933,1728161441317,-173.100606,0.00042498,120]
[339932935,1728161441328,-151.100606,0.00042598,120]
[339932938,1728161441340,-851.405413,0.00042611,30]
[339932939,1728161441350,-500.0,0.00042622,120]
[339932942,1728161441361,-151.100606,0.00042698,120]
[339932944,1728161441371,-1300.09305,0.000427,30]
[339932946,1728161441382,-150.0,0.00042763,120]
[339932947,1728161441392,-1000.0,0.00042808,60]
[339932949,1728161441404,-700.0,0.00042808,60]
[339932951,1728161441414,-203.29451311,0.00042808,60]
[339932953,1728161441425,-500.0,0.00042808,60]
[339932955,1728161441436,-500.0,0.00042876,120]
[339932957,1728161441447,-562.31,0.00042876,120]
[339932959,1728161441459,-490.22778276,0.00042876,120]
[339932961,1728161441469,-500.0,0.00042876,120]
[339932963,1728161441481,-748.95,0.00042876,120]
[339932965,1728161441491,-536.38,0.00042876,120]
[339932967,1728161441502,-967.22,0.00042876,120]
[339932970,1728161441514,-972.91,0.00042876,120]
[339932972,1728161441526,-803.68,0.00042876,120]
[339932974,1728161441541,-719.15,0.00042876,120]
[339932977,1728161441553,-801.5,0.00042876,120]
[339932979,1728161441563,-500.0,0.00042876,120]
[339932981,1728161441573,-500.0,0.00042876,120]
[339932983,1728161441583,-500.0,0.00042876,120]
[339932984,1728161441592,-500.0,0.00042876,120]
[339932986,1728161441602,-500.0,0.00042876,120]
[339932988,1728161441611,-233.50629119,0.00042876,30]
[339932990,1728161441621,-500.0,0.00042876,120]
[339932992,1728161441631,-500.0,0.00042876,120]
[339932994,1728161441641,-500.0,0.00042876,120]
[339932996,1728161441652,-500.0,0.00042876,120]
[339932998,1728161441662,-958.96,0.00042876,120]
[339933000,1728161441673,-500.0,0.00042876,120]
[339933002,1728161441684,-575.89,0.00042876,60]
[339933004,1728161441694,-500.0,0.00042876,120]
[339933006,1728161441704,-500.0,0.00042876,120]
[339933008,1728161441714,-500.0,0.00042876,120]
[339933010,1728161441723,-841.88,0.00042876,120]
[339933012,1728161441733,-500.0,0.00042876,120]
[339933014,1728161441745,-500.0,0.00042876,120]
[339933016,1728161441758,-500.0,0.00042876,120]
[339933018,1728161441769,-500.0,0.00042876,120]
[339933019,1728161441778,-500.0,0.00042876,120]
[339933021,1728161441789,-500.0,0.00042876,120]
[339933023,1728161441800,-500.0,0.00042876,120]
[339933025,1728161441810,-500.0,0.00042876,120]
[339933027,1728161441820,-500.0,0.00042876,120]
[339933029,1728161441831,-397.76582218,0.00042876,120]
[339933031,1728161441841,-404.69436215,0.00042876,120]
[339933033,1728161441850,-500.0,0.00042876,120]
[339933035,1728161441859,-973.04,0.00042876,120]
[339933037,1728161441868,-500.0,0.00042876,120]
[339933039,1728161441878,-1000.0,0.00042999,120]
[339933041,1728161441888,-1500.0,0.00043,2]
[339933043,1728161441898,-100000.0,0.00043,120]
[339933045,1728161441908,-173.0,0.00043,90]
[339933047,1728161441918,-163.90333942,0.00043037,10]
[339933049,1728161441928,-851.405413,0.00043137,30]
[339933051,1728161441938,-151.100606,0.00043198,120]
[339933053,1728161441949,-1300.09305,0.00043234,30]
[339933055,1728161441959,-500.0,0.00043287,120]
[339933057,1728161441968,-562.31,0.00043287,120]
[339933059,1728161441978,-500.0,0.00043287,120]
[339933061,1728161441988,-748.95,0.00043287,120]
[339933063,1728161441998,-536.38,0.00043287,120]
[339933065,1728161442008,-967.22,0.00043287,120]
[339933067,1728161442017,-972.91,0.00043287,120]
[339933069,1728161442028,-803.68,0.00043287,120]
[339933071,1728161442038,-719.15,0.00043287,120]
[339933073,1728161442050,-801.5,0.00043287,120]
[339933075,1728161442060,-500.0,0.00043287,120]
[339933077,1728161442070,-500.0,0.00043287,120]
[339933079,1728161442080,-500.0,0.00043287,120]
[339933081,1728161442090,-348.77,0.00043287,120]
[339933082,1728161442100,-596.96490555,0.00043287,120]
[339933084,1728161442110,-500.0,0.00043287,120]
[339933086,1728161442122,-571.34631542,0.00043287,120]
[339933088,1728161442133,-500.0,0.00043287,120]
[339933090,1728161442144,-500.0,0.00043287,120]
[339933093,1728161442154,-958.96,0.00043287,120]
[339933094,1728161442164,-375.34146745,0.00043287,120]
[339933096,1728161442174,-575.89,0.00043287,60]
[339933098,1728161442184,-500.0,0.00043287,120]
[339933100,1728161442194,-500.0,0.00043287,120]
[339933102,1728161442203,-389.84636696,0.00043287,120]
[339933104,1728161442213,-841.88,0.00043287,120]
[339933106,1728161442223,-500.0,0.00043287,120]
[339933108,1728161442234,-500.0,0.00043287,120]
[339933110,1728161442244,-500.0,0.00043287,120]
[339933112,1728161442254,-500.0,0.00043287,120]
[339933113,1728161442264,-500.0,0.00043287,120]
[339933115,1728161442274,-500.0,0.00043287,120]
[339933117,1728161442284,-500.0,0.00043287,120]
[339933118,1728161442294,-500.0,0.00043287,120]
[339933120,1728161442304,-500.0,0.00043287,120]
[339933122,1728161442314,-500.0,0.00043287,120]
[339933124,1728161442324,-973.04,0.00043287,120]
[339933126,1728161442333,-500.0,0.00043287,120]
[339933128,1728161442343,-151.100606,0.00043298,120]
[339933130,1728161442353,-151.100606,0.00043398,120]
[339933132,1728161442363,-151.100606,0.00043498,120]
[339933134,1728161442373,-151.100606,0.00043598,120]
[339933136,1728161442384,-239.33,0.00043647,2]
[339933137,1728161442394,-851.405413,0.00043663,30]
[339933139,1728161442405,-500.0,0.00043698,120]
[339933141,1728161442414,-562.31,0.00043698,120]
[339933143,1728161442424,-500.0,0.00043698,120]
[339933145,1728161442434,-748.95,0.00043698,120]
[339933147,1728161442444,-536.38,0.00043698,120]
[339933149,1728161442453,-967.22,0.00043698,120]
[339933150,1728161442463,-972.91,0.00043698,120]
[339933152,1728161442473,-803.68,0.00043698,120]
[339933154,1728161442482,-719.15,0.00043698,120]
[339933156,1728161442492,-801.5,0.00043698,120]
[339933158,1728161442502,-500.0,0.00043698,120]
[339933160,1728161442511,-500.0,0.00043698,120]
[339933162,1728161442521,-151.100606,0.00043698,120]
[339933164,1728161442531,-522.83180409,0.00043698,120]
[339933166,1728161442540,-461.71114616,0.00043698,120]
[339933168,1728161442550,-500.0,0.00043698,120]
[339933170,1728161442559,-500.0,0.00043698,120]
[339933172,1728161442569,-958.96,0.00043698,120]
[339933174,1728161442578,-575.89,0.00043698,60]
[339933176,1728161442588,-500.0,0.00043698,120]
[339933178,1728161442598,-500.0,0.00043698,120]
[339933180,1728161442607,-841.88,0.00043698,120]
[339933182,1728161442617,-500.0,0.00043698,120]
[339933184,1728161442626,-520.37035674,0.00043698,120]
[339933186,1728161442636,-566.74117637,0.00043698,120]
[339933188,1728161442645,-500.0,0.00043698,120]
[339933190,1728161442654,-500.0,0.00043698,120]
[339933192,1728161442663,-500.0,0.00043698,120]
[339933194,1728161442673,-500.0,0.00043698,120]
[339933196,1728161442682,-500.0,0.00043698,120]
[339933198,1728161442691,-466.20618243,0.00043698,120]
[339933200,1728161442701,-500.0,0.00043698,120]
[339933202,1728161442710,-973.04,0.00043698,120]
[339933204,1728161442720,-500.0,0.00043698,120]
[339933206,1728161442732,-5442.88448953,0.00043763,15]
[339933208,1728161442741,-1300.09305,0.00043767,30]
[339933211,1728161442751,-150.34644204,0.000439,2]
[339933213,1728161442761,-4386.01356838,0.000439,2]
[339933215,1728161442771,-179.7665938,0.000439,9]
[339933217,1728161442780,-1015.93082266,0.000439,2]
[339933219,1728161442790,-1000.0,0.00043904,120]
[339933221,1728161442800,-700.0,0.00043904,120]
[339933223,1728161442809,-500.0,0.00043904,120]
[339933225,1728161442819,-315.47617442,0.00043932,28]
[339933227,1728161442829,-1000.0,0.00043999,120]
[339933229,1728161442839,-100000.0,0.00044,120]
[339933231,1728161442849,-73955.95598051,0.00044,120]
[339933266,1728161443142,-4537.80597455,0.00044,120]
[339933276,1728161443230,-262.58507275,0.00039398,5]
[339933279,1728161443242,-306.41492725,0.00039398,5]
[339933280,1728161443252,-500.0,0.0004041,30]
[339933282,1728161443262,-500.0,0.00040821,30]
[339933284,1728161443271,-500.0,0.00041232,120]
[339933286,1728161443280,-500.0,0.00041643,120]
[339933288,1728161443289,-390.62836056,0.00041643,120]
[339933290,1728161443298,-500.0,0.00042054,120]
[339933292,1728161443307,-500.0,0.00042465,120]
[339933294,1728161443316,-500.0,0.00042876,120]
[339933296,1728161443325,-500.0,0.00043287,120]
[339933298,1728161443334,-500.0,0.00043698,120]
[339933300,1728161443343,-901.92534053,0.00044,120]
[339933304,1728161443371,-336.86532243,0.00044,120]
[339933306,1728161443382,-576.25,0.00044,120]
[339933409,1728161444750,-344229.90986768,0.00044,120]
[339933410,1728161444761,-896.54677076,0.00044,120]
[339933411,1728161444772,-266118.35127843,0.00044,120]
[339933412,1728161444788,-9538.12357029,0.00044,120]
[339933413,1728161444799,-3967.71467605,0.00044,120]
[339933414,1728161444810,-515.08873166,0.00044,120]
[339933415,1728161444820,-2618.12992597,0.00044,120]
[339933416,1728161444831,-4728.12435006,0.00044,120]
[339933417,1728161444845,-1337.72872409,0.00044,120]
[339933418,1728161444856,-3348.02043502,0.00044,120]
[339933501,1728161446035,-1655.67425828,0.0004031,12]
[339933503,1728161446045,-775.0,0.00044,7]
[339933505,1728161446054,-22483.06038829,0.00044,120]
[339933507,1728161446065,-144456.83354,0.00044,120]
[339933510,1728161446089,-1581.5402501,0.00044,120]
[339933925,1728161491328,500.0,0.00010959,2]
[339933926,1728161491885,778.0,0.00010959,2]
[339933927,1728161799731,150.0,0.00011,3]
[339933931,1728162070165,160.24,0.00010959,2]
[339933942,1728162632163,-250.0,0.00011,2]
[339933943,1728162632175,-150.0,0.000114,2]
[339933944,1728162632186,-300.0,0.00013,2]
[339933945,1728162632199,-173.63,0.00013699,2]
[339933946,1728162632209,-26.37,0.00015,2]
[339933947,1728162632258,-323.63,0.00015,2]
[339933948,1728162632267,-6574.78665828,0.00015,2]
[339933949,1728162632276,-400.0,0.00017,2]
[339933950,1728162632285,-450.0,0.00019,2]
[339933951,1728162632294,-499.99,0.00019726,2]
[339933952,1728162632304,-1431.05,0.00019726,5]
[339933953,1728162632313,-500.0,0.00021,2]
[339933954,1728162632323,-550.0,0.00023,2]
[339933955,1728162632332,-1082.0,0.00023698,2]
[339933956,1728162632341,-1329.152862,0.00024875,2]
[339933957,1728162632350,-6611.65210398,0.00025,120]
[339933958,1728162632360,-802.0,0.00026291,2]
[339933959,1728162632369,-625.0,0.00026292,2]
[339933961,1728162632379,-1348.778,0.00026292,2]
[339933963,1728162632390,-808.01955476,0.00026292,2]
[339933965,1728162632402,-12.50744524,0.00026292,2]
[339933966,1728162632411,-449.0,0.00026292,2]
[339933967,1728162632420,-999.542,0.00026292,2]
[339933968,1728162632429,-653.805,0.00026292,2]
[339933970,1728162632438,-554.0,0.00026292,2]
[339933972,1728162632447,-608.88508428,0.00026292,2]
[339933973,1728162633194,160.84,0.00010959,2]
[339933975,1728162638331,-271.603,0.00025766,2]
[339933976,1728162638341,-1296.11491572,0.00026292,2]
[339933977,1728162638351,-424.389,0.00026292,2]
[339933978,1728162638361,-1910.0,0.00026292,2]
[339933979,1728162638371,-1451.1123,0.000318,2]
[339933980,1728162638381,-135.04398528,0.000318,2]
[339933981,1728162638394,-126.97561472,0.000318,2]
[339933982,1728162638405,-474.2104782,0.00032069,2]
[339934011,1728162643263,-640.91615652,0.00024353,2]
[339934012,1728162643272,-40.41979548,0.00032069,2]
[339934015,1728162646258,-1229.57292632,0.00032069,2]
[339934016,1728162646269,-667.89,0.00035981,2]
[339934017,1728162646278,-998.14,0.00036,10]
[339934018,1728162646287,-151.0,0.00036631,2]
[339934019,1728162646296,-250.0,0.0003706,120]
[339934020,1728162646305,-330.81,0.00037169,2]
[339934021,1728162646314,-192.261,0.00037169,2]
[339934022,1728162646323,-250.0,0.0003738,2]
[339934023,1728162646332,-846.26,0.00037642,2]
[339934024,1728162646341,-859.79,0.00037642,2]
[339934025,1728162646350,-754.57,0.00037642,2]
[339934026,1728162646360,-754.57,0.00037642,2]
[339934027,1728162646371,-754.57,0.00037642,2]
[339934028,1728162646380,-754.57,0.00037642,2]
[339934029,1728162646390,-754.57,0.00037642,2]
[339934030,1728162646400,-754.57,0.00037642,2]
[339934031,1728162646409,-754.57,0.00037642,2]
[339934032,1728162646419,-998.14,0.00037685,23]
[339934033,1728162646428,-300.0,0.00037779,2]
[339934034,1728162646438,-1500.0,0.000378,2]
[339934035,1728162646447,-200.0,0.00037922,2]
[339934036,1728162646456,-888.87,0.00037933,50]
[339934037,1728162646466,-160.28,0.00037937,120]
[339934038,1728162646477,-23900.0,0.00038034,2]
[339934039,1728162646486,-302.21,0.00038053,2]
[339934040,1728162646495,-500.0,0.00038073,2]
[339934041,1728162646504,-667.89,0.00038245,2]
[339934042,1728162646513,-209.12,0.00038333,2]
[339934043,1728162646522,-160.0,0.00038345,120]
[339934044,1728162646531,-340.992,0.00038355,51]
[339934045,1728162646541,-500.0,0.00038356,2]
[339934046,1728162646551,-500.0,0.00038356,30]
[339934047,1728162646562,-500.0,0.00038356,30]
[339934048,1728162646571,-288.49660313,0.00038356,30]
[339934049,1728162646581,-500.0,0.00038356,30]
[339934050,1728162646590,-500.0,0.00038356,30]
[339934051,1728162646600,-590.82,0.00038356,30]
[339934052,1728162646609,-550.0,0.00038356,30]
[339934053,1728162646619,-187.77540839,0.00038356,30]
[339934054,1728162646628,-220.80436229,0.00038356,30]
[339934055,1728162646637,-1458.33,0.00038356,30]
[339934056,1728162646646,-500.0,0.00038356,30]
[339934057,1728162646656,-754.57,0.00038601,2]
[339934058,1728162646664,-500.0,0.00038767,2]
[339934059,1728162646673,-500.0,0.00038767,30]
[339934060,1728162646682,-500.0,0.00038767,30]
[339934061,1728162646691,-500.0,0.00038767,30]
[339934062,1728162646701,-500.0,0.00038767,30]
[339934063,1728162646710,-1458.33,0.00038767,30]
[339934064,1728162646719,-500.0,0.00038767,30]
[339934065,1728162646728,-152.0,0.00038774,3]
[339934066,1728162646737,-156.13,0.00039089,120]
[339934067,1728162646746,-1000.0,0.00039144,2]
[339934068,1728162646756,-585.64793538,0.00039178,2]
[339934069,1728162646765,-500.0,0.00039178,30]
[339934070,1728162646775,-500.0,0.00039178,30]
[339934071,1728162646784,-634.39343666,0.00039178,30]
[339934072,1728162646794,-500.0,0.00039178,30]
[339934073,1728162646803,-1458.33,0.00039178,30]
[339934074,1728162646812,-500.0,0.00039178,30]
[339934075,1728162646822,-509.5205,0.0003919,2]
[339934076,1728162646830,-169.3,0.00039206,2]
[339934077,1728162646839,-1393.046378,0.0003937,36]
[339934078,1728162646848,-500.0,0.00039589,30]
[339934079,1728162646857,-500.0,0.00039589,30]
[339934080,1728162646866,-500.0,0.00039589,30]
[339934081,1728162646875,-1458.33,0.00039589,30]
[339934082,1728162646884,-500.0,0.00039589,30]
[339934083,1728162646893,-500.0,0.0004,30]
[339934084,1728162646902,-500.0,0.0004,30]
[339934085,1728162646911,-578.48775449,0.0004,120]
[339934086,1728162646920,-500.0,0.0004,30]
[339934087,1728162646929,-1458.33,0.0004,30]
[339934088,1728162646939,-500.0,0.0004,30]
[339934089,1728162646947,-150.0,0.0004,2]
[339934090,1728162646957,-500.0,0.00040377,120]
[339934091,1728162646966,-500.0,0.0004041,30]
[339934092,1728162646975,-500.0,0.0004041,30]
[339934093,1728162646984,-500.0,0.0004041,30]
[339934094,1728162646993,-1458.33,0.0004041,30]
[339934095,1728162647002,-500.0,0.0004041,30]
[339934096,1728162647011,-1500.0,0.000405,2]
[339934097,1728162647020,-667.89,0.00040509,2]
[339934098,1728162647029,-859.0,0.000408,27]
[339934099,1728162647038,-500.0,0.00040821,30]
[339934100,1728162647047,-500.0,0.00040821,30]
[339934101,1728162647056,-500.0,0.00040821,30]
[339934102,1728162647068,-1458.33,0.00040821,30]
[339934103,1728162647085,-500.0,0.00040821,30]
[339934104,1728162647094,-157.0,0.00041096,2]
[339934105,1728162647103,-500.0,0.00041232,60]
[339934106,1728162647112,-500.0,0.00041232,120]
[339934107,1728162647121,-476.32,0.00041232,120]
[339934108,1728162647130,-1458.33,0.00041232,120]
[339934109,1728162647139,-500.0,0.00041232,120]
[339934110,1728162647148,-500.0,0.00041643,60]
[339934111,1728162647157,-500.0,0.00041643,120]
[339934112,1728162647166,-1458.33,0.00041643,120]
[339934113,1728162647175,-500.0,0.00041643,120]
[339934114,1728162647183,-500.0,0.00041712,60]
[339934115,1728162647192,-500.0,0.00041712,60]
[339934116,1728162647201,-180.0,0.00041837,120]
[339934117,1728162647210,-500.0,0.00042054,60]
[339934118,1728162647219,-500.0,0.00042054,120]
[339934119,1728162647228,-1458.33,0.00042054,120]